[Event "January 2 Late 2024"]
[Site "https://www.chess.com"]
[Date "2024.01.02"]
[Round "9"]
[White "Curtis, John"]
[Black "Karpov, Vadim"]
[Result "1/2-1/2"]
[Board "113"]
[TimeControl "180+1"]
[WhiteFideId "3200256"]
[BlackFideId "4155025"]
[WhiteElo "2239"]
[BlackElo "2425"]
[WhiteTeam "AUS"]
[BlackTeam "RUS"]
[WhiteClock "0:00:28"]
[BlackClock "0:00:44"]

1. d4 {[%clk 0:03:00]}  e6 {[%clk 0:03:00]} 2. e4 {[%clk 0:02:57]}  d5 {[%clk 0:03:00]} 3. exd5 {[%clk 0:02:58]}  exd5 {[%clk 0:03:00]} 4. Bd3 {[%clk 0:02:58]}  Nf6 {[%clk 0:02:58]} 5. Ne2 {[%clk 0:02:57]}  Bd6 {[%clk 0:02:57]} 6. O-O {[%clk 0:02:57]}  O-O {[%clk 0:02:57]} 7. Bf4 {[%clk 0:02:57]}  Bg4 {[%clk 0:02:55]} 8. f3 {[%clk 0:02:56]}  Bh5 {[%clk 0:02:55]} 9. Qd2 {[%clk 0:02:52]}  Nc6 {[%clk 0:02:50]} 10. c3 {[%clk 0:02:51]}  Bg6 {[%clk 0:02:48]} 11. Bxd6 {[%clk 0:02:48]}  Qxd6 {[%clk 0:02:47]} 12. Nf4 {[%clk 0:02:47]}  Rfe8 {[%clk 0:02:45]} 13. Na3 {[%clk 0:02:43]}  a6 {[%clk 0:02:44]} 14. Nc2 {[%clk 0:02:41]}  Re7 {[%clk 0:02:44]} 15. Rae1 {[%clk 0:02:40]}  Rae8 {[%clk 0:02:42]} 16. Nxg6 {[%clk 0:02:38]}  hxg6 {[%clk 0:02:42]} 17. Rxe7 {[%clk 0:02:38]}  Rxe7 {[%clk 0:02:42]} 18. Re1 {[%clk 0:02:39]}  Kf8 {[%clk 0:02:42]} 19. Rxe7 {[%clk 0:02:37]}  Qxe7 {[%clk 0:02:42]} 20. Qe3 {[%clk 0:02:35]}  Qxe3+ {[%clk 0:02:42]} 21. Nxe3 {[%clk 0:02:35]}  Ke7 {[%clk 0:02:41]} 22. f4 {[%clk 0:02:29]}  Kd6 {[%clk 0:02:36]} 23. Kf2 {[%clk 0:02:27]}  Ne7 {[%clk 0:02:35]} 24. Kf3 {[%clk 0:02:27]}  a5 {[%clk 0:02:33]} 25. g4 {[%clk 0:02:26]}  b6 {[%clk 0:02:30]} 26. g5 {[%clk 0:02:25]}  Nd7 {[%clk 0:02:20]} 27. Ng4 {[%clk 0:02:24]}  f6 {[%clk 0:02:12]} 28. h4 {[%clk 0:02:20]}  c5 {[%clk 0:02:11]} 29. Bb5 {[%clk 0:02:14]}  Nc6 {[%clk 0:02:06]} 30. Bxc6 {[%clk 0:02:13]}  Kxc6 {[%clk 0:02:05]} 31. Ne3 {[%clk 0:02:06]}  Nf8 {[%clk 0:01:40]} 32. Ng4 {[%clk 0:01:44]}  Nd7 {[%clk 0:01:35]} 33. Ke3 {[%clk 0:01:43]}  Kd6 {[%clk 0:01:32]} 34. Kf3 {[%clk 0:01:34]}  Ke6 {[%clk 0:01:30]} 35. a4 {[%clk 0:01:21]}  cxd4 {[%clk 0:01:30]} 36. cxd4 {[%clk 0:01:21]}  Nb8 {[%clk 0:01:30]} 37. Ne3 {[%clk 0:01:02]}  Nc6 {[%clk 0:01:30]} 38. Nc2 {[%clk 0:00:57]}  Kf5 {[%clk 0:01:17]} 39. Ne3+ {[%clk 0:00:56]}  Ke6 {[%clk 0:01:17]} 40. Nc2 {[%clk 0:00:54]}  fxg5 {[%clk 0:01:12]} 41. hxg5 {[%clk 0:00:46]}  Ne7 {[%clk 0:01:11]} 42. Kg4 {[%clk 0:00:35]}  Kd6 {[%clk 0:01:08]} 43. Ne3 {[%clk 0:00:30]}  Ke6 {[%clk 0:01:08]} 44. b3 {[%clk 0:00:30]}  Nc8 {[%clk 0:01:01]} 45. f5+ {[%clk 0:00:29]}  gxf5+ {[%clk 0:01:00]} 46. Nxf5 {[%clk 0:00:29]}  g6 {[%clk 0:01:01]} 47. Nh4 {[%clk 0:00:28]}  Kf7 {[%clk 0:01:00]} 48. Kf4 {[%clk 0:00:28]}  Nd6 {[%clk 0:00:50]} 49. Ke5 {[%clk 0:00:28]}  Ne4 {[%clk 0:00:50]} 50. Kxd5 {[%clk 0:00:28]}  Nxg5 {[%clk 0:00:50]} 51. Kc6 {[%clk 0:00:27]}  Ne6 {[%clk 0:00:49]} 52. Nxg6 {[%clk 0:00:27]}  Nxd4+ {[%clk 0:00:46]} 53. Kxb6 {[%clk 0:00:27]}  Kxg6 {[%clk 0:00:43]} 54. Kxa5 {[%clk 0:00:27]}  Nxb3+ {[%clk 0:00:44]} 55. Kb4 {[%clk 0:00:26]}  Nd4 {[%clk 0:00:43]} 56. a5 {[%clk 0:00:27]}  Nc6+ {[%clk 0:00:43]} 57. Kb5 {[%clk 0:00:28]}  Nxa5 {[%clk 0:00:44]} 1/2-1/2

[Event "January 2 Late 2024"]
[Site "https://www.chess.com"]
[Date "2024.01.02"]
[Round "9"]
[White "Poddubnyi, Viktor"]
[Black "Grycel, Kamil"]
[Result "0-1"]
[Board "116"]
[TimeControl "180+1"]
[WhiteFideId "4141989"]
[BlackFideId "1115499"]
[WhiteElo "2329"]
[BlackElo "2559"]
[WhiteTeam "RUS"]
[BlackTeam "POL"]
[WhiteClock "0:00:07"]
[BlackClock "0:01:12"]

1. e4 {[%clk 0:03:00]}  d6 {[%clk 0:03:00]} 2. d4 {[%clk 0:02:59]}  Nf6 {[%clk 0:03:01]} 3. Nc3 {[%clk 0:02:58]}  c6 {[%clk 0:03:01]} 4. a4 {[%clk 0:02:57]}  a5 {[%clk 0:03:01]} 5. g3 {[%clk 0:02:57]}  Nbd7 {[%clk 0:02:55]} 6. Bg2 {[%clk 0:02:55]}  e5 {[%clk 0:02:55]} 7. Nge2 {[%clk 0:02:55]}  Be7 {[%clk 0:02:55]} 8. O-O {[%clk 0:02:54]}  O-O {[%clk 0:02:55]} 9. h3 {[%clk 0:02:54]}  exd4 {[%clk 0:02:49]} 10. Nxd4 {[%clk 0:02:53]}  Nc5 {[%clk 0:02:49]} 11. g4 {[%clk 0:02:46]}  h6 {[%clk 0:02:48]} 12. Bf4 {[%clk 0:02:40]}  Re8 {[%clk 0:02:45]} 13. Qd2 {[%clk 0:02:38]}  Nh7 {[%clk 0:02:43]} 14. Rfe1 {[%clk 0:02:36]}  Qb6 {[%clk 0:02:28]} 15. b3 {[%clk 0:01:15]}  Be6 {[%clk 0:02:06]} 16. Nxe6 {[%clk 0:01:11]}  Nxe6 {[%clk 0:02:04]} 17. Be3 {[%clk 0:01:11]}  Qc7 {[%clk 0:02:03]} 18. Rad1 {[%clk 0:01:10]}  Rad8 {[%clk 0:02:02]} 19. f4 {[%clk 0:01:09]}  Bh4 {[%clk 0:02:02]} 20. Rf1 {[%clk 0:01:08]}  Nc5 {[%clk 0:01:51]} 21. Qe2 {[%clk 0:00:57]}  b6 {[%clk 0:01:47]} 22. Qc4 {[%clk 0:00:52]}  Bf6 {[%clk 0:01:37]} 23. Bd4 {[%clk 0:00:50]}  Qe7 {[%clk 0:01:28]} 24. Rfe1 {[%clk 0:00:35]}  g5 {[%clk 0:01:21]} 25. e5 {[%clk 0:00:27]}  dxe5 {[%clk 0:01:18]} 26. fxe5 {[%clk 0:00:27]}  Bg7 {[%clk 0:01:18]} 27. Bxc6 {[%clk 0:00:27]}  Rf8 {[%clk 0:01:18]} 28. Nd5 {[%clk 0:00:27]}  Qe6 {[%clk 0:01:14]} 29. Bb5 {[%clk 0:00:07]}  Qxd5 {[%clk 0:01:12]} 0-1

[Event "January 2 Late 2024"]
[Site "https://www.chess.com"]
[Date "2024.01.02"]
[Round "9"]
[White "AmanteDeMoi"]
[Black "Osmonbekov, Talaibek"]
[Result "1-0"]
[Board "117"]
[TimeControl "180+1"]
[BlackFideId "2017253"]
[WhiteElo "2548"]
[BlackElo "2307"]
[BlackTeam "USA"]
[WhiteClock "0:00:35"]
[BlackClock "0:00:26"]

1. Nf3 {[%clk 0:03:00]}  f5 {[%clk 0:02:57]} 2. e3 {[%clk 0:03:01]}  Nf6 {[%clk 0:02:57]} 3. c4 {[%clk 0:03:01]}  e6 {[%clk 0:02:55]} 4. b3 {[%clk 0:02:57]}  d6 {[%clk 0:02:54]} 5. Bb2 {[%clk 0:02:58]}  e5 {[%clk 0:02:54]} 6. d4 {[%clk 0:02:53]}  e4 {[%clk 0:02:54]} 7. Nfd2 {[%clk 0:02:53]}  c6 {[%clk 0:02:54]} 8. Nc3 {[%clk 0:02:53]}  d5 {[%clk 0:02:54]} 9. Rc1 {[%clk 0:02:52]}  Be7 {[%clk 0:02:49]} 10. cxd5 {[%clk 0:02:49]}  cxd5 {[%clk 0:02:49]} 11. Nb5 {[%clk 0:02:40]}  Nc6 {[%clk 0:02:49]} 12. Ba3 {[%clk 0:02:25]}  O-O {[%clk 0:02:46]} 13. Bxe7 {[%clk 0:02:24]}  Qxe7 {[%clk 0:02:46]} 14. g3 {[%clk 0:02:17]}  a6 {[%clk 0:02:19]} 15. Nc3 {[%clk 0:02:17]}  f4 {[%clk 0:02:18]} 16. gxf4 {[%clk 0:02:16]}  Nxd4 {[%clk 0:02:17]} 17. exd4 {[%clk 0:02:07]}  e3 {[%clk 0:02:17]} 18. fxe3 {[%clk 0:01:53]}  Qxe3+ {[%clk 0:02:17]} 19. Qe2 {[%clk 0:01:52]}  Qxf4 {[%clk 0:02:13]} 20. Qf2 {[%clk 0:01:23]}  Qh6 {[%clk 0:02:12]} 21. Bg2 {[%clk 0:01:15]}  Bg4 {[%clk 0:02:02]} 22. O-O {[%clk 0:01:06]}  Ne4 {[%clk 0:01:23]} 23. Bxe4 {[%clk 0:01:05]}  Rxf2 {[%clk 0:01:21]} 24. Bxd5+ {[%clk 0:01:05]}  Be6 {[%clk 0:01:12]} 25. Bxe6+ {[%clk 0:01:06]}  Qxe6 {[%clk 0:01:11]} 26. Rxf2 {[%clk 0:01:07]}  Qg4+ {[%clk 0:01:06]} 27. Kh1 {[%clk 0:01:01]}  Qxd4 {[%clk 0:01:06]} 28. Nce4 {[%clk 0:01:00]}  Re8 {[%clk 0:01:00]} 29. Rcf1 {[%clk 0:00:57]}  h6 {[%clk 0:01:01]} 30. Rf4 {[%clk 0:00:52]}  Qd5 {[%clk 0:00:56]} 31. R1f3 {[%clk 0:00:50]}  Kh7 {[%clk 0:00:50]} 32. Rh4 {[%clk 0:00:37]}  b5 {[%clk 0:00:45]} 33. Kg1 {[%clk 0:00:36]}  a5 {[%clk 0:00:40]} 34. Rg4 {[%clk 0:00:30]}  a4 {[%clk 0:00:36]} 35. Rfg3 {[%clk 0:00:30]}  Re7 {[%clk 0:00:35]} 36. Rxg7+ {[%clk 0:00:30]}  Kh8 {[%clk 0:00:27]} 37. Rxe7 {[%clk 0:00:29]}  Qd4+ {[%clk 0:00:27]} 38. Kg2 {[%clk 0:00:29]}  axb3 {[%clk 0:00:26]} 39. axb3 {[%clk 0:00:27]}  b4 {[%clk 0:00:25]} 40. Re8+ {[%clk 0:00:27]}  Kh7 {[%clk 0:00:25]} 41. Nf3 {[%clk 0:00:20]}  Qb2+ {[%clk 0:00:23]} 42. Ned2 {[%clk 0:00:20]}  h5 {[%clk 0:00:19]} 43. Ng5+ {[%clk 0:00:18]}  Kh6 {[%clk 0:00:19]} 44. Nf7+ {[%clk 0:00:19]}  Kh7 {[%clk 0:00:17]} 45. Rh8+ {[%clk 0:00:16]}  Qxh8 {[%clk 0:00:17]} 46. Nxh8 {[%clk 0:00:16]}  Kxh8 {[%clk 0:00:17]} 47. Rh3 {[%clk 0:00:16]}  Kg7 {[%clk 0:00:17]} 48. Rxh5 {[%clk 0:00:17]}  Kf6 {[%clk 0:00:18]} 49. Rh4 {[%clk 0:00:17]}  Ke5 {[%clk 0:00:18]} 50. Rxb4 {[%clk 0:00:18]}  Kd5 {[%clk 0:00:19]} 51. Rc4 {[%clk 0:00:19]}  Kd6 {[%clk 0:00:19]} 52. Kf2 {[%clk 0:00:20]}  Kd5 {[%clk 0:00:19]} 53. Ke1 {[%clk 0:00:21]}  Kd6 {[%clk 0:00:20]} 54. Kd1 {[%clk 0:00:22]}  Kd5 {[%clk 0:00:21]} 55. Kc2 {[%clk 0:00:23]}  Kd6 {[%clk 0:00:21]} 56. Kc3 {[%clk 0:00:24]}  Kd5 {[%clk 0:00:22]} 57. h3 {[%clk 0:00:25]}  Kd6 {[%clk 0:00:23]} 58. h4 {[%clk 0:00:26]}  Kd5 {[%clk 0:00:23]} 59. Nb1 {[%clk 0:00:26]}  Kd6 {[%clk 0:00:24]} 60. Na3 {[%clk 0:00:27]}  Ke5 {[%clk 0:00:25]} 61. Nc2 {[%clk 0:00:28]}  Kd6 {[%clk 0:00:25]} 62. Nb4 {[%clk 0:00:29]}  Ke6 {[%clk 0:00:25]} 63. Nd3 {[%clk 0:00:30]}  Kf5 {[%clk 0:00:25]} 64. Nb2 {[%clk 0:00:31]}  Ke6 {[%clk 0:00:26]} 65. Na4 {[%clk 0:00:32]}  Kf5 {[%clk 0:00:26]} 66. Kc2 {[%clk 0:00:33]}  Ke6 {[%clk 0:00:27]} 67. Kb2 {[%clk 0:00:34]}  Kf5 {[%clk 0:00:26]} 68. Ka3 {[%clk 0:00:35]} 1-0

[Event "January 2 Late 2024"]
[Site "https://www.chess.com"]
[Date "2024.01.02"]
[Round "9"]
[White "Kujawski, Adam"]
[Black "Rangel, Daniel"]
[Result "0-1"]
[Board "118"]
[TimeControl "180+1"]
[WhiteFideId "1100920"]
[BlackFideId "2124475"]
[WhiteElo "2314"]
[BlackElo "2503"]
[WhiteTeam "POL"]
[BlackTeam "BRA"]
[WhiteClock "0:00:00"]
[BlackClock "0:00:55"]

1. Nf3 {[%clk 0:02:49]}  Nf6 {[%clk 0:02:55]} 2. c4 {[%clk 0:02:48]}  g6 {[%clk 0:02:56]} 3. g3 {[%clk 0:02:47]}  Bg7 {[%clk 0:02:56]} 4. Bg2 {[%clk 0:02:47]}  O-O {[%clk 0:02:57]} 5. O-O {[%clk 0:02:47]}  d6 {[%clk 0:02:58]} 6. Qc2 {[%clk 0:02:45]}  Nc6 {[%clk 0:02:57]} 7. d3 {[%clk 0:02:33]}  e5 {[%clk 0:02:55]} 8. Bg5 {[%clk 0:02:25]}  h6 {[%clk 0:02:52]} 9. Bxf6 {[%clk 0:02:25]}  Qxf6 {[%clk 0:02:51]} 10. Nc3 {[%clk 0:02:25]}  Qd8 {[%clk 0:02:48]} 11. Rab1 {[%clk 0:02:20]}  Nd4 {[%clk 0:02:46]} 12. Qd1 {[%clk 0:02:05]}  c6 {[%clk 0:02:40]} 13. e3 {[%clk 0:02:03]}  Nf5 {[%clk 0:02:36]} 14. b4 {[%clk 0:02:00]}  Be6 {[%clk 0:02:29]} 15. b5 {[%clk 0:01:57]}  c5 {[%clk 0:02:28]} 16. Nd2 {[%clk 0:01:49]}  Qd7 {[%clk 0:02:26]} 17. a4 {[%clk 0:01:40]}  Rad8 {[%clk 0:02:21]} 18. Re1 {[%clk 0:01:36]}  Ne7 {[%clk 0:02:10]} 19. Nd5 {[%clk 0:01:32]}  Nxd5 {[%clk 0:02:07]} 20. cxd5 {[%clk 0:01:32]}  Bh3 {[%clk 0:02:07]} 21. Bh1 {[%clk 0:01:25]}  f5 {[%clk 0:02:05]} 22. Nc4 {[%clk 0:01:17]}  f4 {[%clk 0:02:04]} 23. Be4 {[%clk 0:00:49]}  fxg3 {[%clk 0:01:58]} 24. hxg3 {[%clk 0:00:45]}  g5 {[%clk 0:01:50]} 25. Qh5 {[%clk 0:00:39]}  Bg4 {[%clk 0:01:45]} 26. Qg6 {[%clk 0:00:38]}  Rf6 {[%clk 0:01:32]} 27. Qh7+ {[%clk 0:00:37]}  Kf8 {[%clk 0:01:32]} 28. b6 {[%clk 0:00:09]}  a6 {[%clk 0:01:30]} 29. d4 {[%clk 0:00:09]}  exd4 {[%clk 0:01:21]} 30. exd4 {[%clk 0:00:09]}  Bh5 {[%clk 0:01:21]} 31. dxc5 {[%clk 0:00:08]}  dxc5 {[%clk 0:01:21]} 32. d6 {[%clk 0:00:08]}  Bf7 {[%clk 0:01:20]} 33. Bf5 {[%clk 0:00:05]}  Qxa4 {[%clk 0:01:12]} 34. Re7 {[%clk 0:00:03]}  Qxc4 {[%clk 0:01:07]} 35. Rbe1 {[%clk 0:00:00]}  Qd5 {[%clk 0:00:55]} 0-1

[Event "January 2 Late 2024"]
[Site "https://www.chess.com"]
[Date "2024.01.02"]
[Round "9"]
[White "Skaric, Djuro"]
[Black "Gavrilov, Maxim"]
[Result "1-0"]
[Board "119"]
[TimeControl "180+1"]
[WhiteFideId "934569"]
[BlackFideId "24271454"]
[WhiteElo "2291"]
[BlackElo "2474"]
[WhiteTeam "SRB"]
[BlackTeam "RUS"]
[WhiteClock "0:00:30"]
[BlackClock "0:00:12"]

1. g3 {[%clk 0:03:00]}  d5 {[%clk 0:02:59]} 2. Bg2 {[%clk 0:03:01]}  Nf6 {[%clk 0:02:59]} 3. d3 {[%clk 0:03:01]}  c6 {[%clk 0:02:51]} 4. Nf3 {[%clk 0:03:02]}  Bg4 {[%clk 0:02:51]} 5. O-O {[%clk 0:03:02]}  Nbd7 {[%clk 0:02:51]} 6. h3 {[%clk 0:03:02]}  Bxf3 {[%clk 0:02:50]} 7. Bxf3 {[%clk 0:03:02]}  e5 {[%clk 0:02:51]} 8. Bg2 {[%clk 0:03:02]}  Bd6 {[%clk 0:02:45]} 9. e4 {[%clk 0:03:02]}  O-O {[%clk 0:02:44]} 10. Nc3 {[%clk 0:03:02]}  dxe4 {[%clk 0:02:38]} 11. dxe4 {[%clk 0:03:00]}  Qe7 {[%clk 0:02:37]} 12. a3 {[%clk 0:02:57]}  a5 {[%clk 0:02:37]} 13. Qe2 {[%clk 0:02:57]}  Rfd8 {[%clk 0:02:35]} 14. f4 {[%clk 0:02:57]}  exf4 {[%clk 0:02:33]} 15. gxf4 {[%clk 0:02:56]}  Bc5+ {[%clk 0:02:33]} 16. Kh1 {[%clk 0:02:56]}  b5 {[%clk 0:02:22]} 17. e5 {[%clk 0:02:56]}  Nd5 {[%clk 0:02:09]} 18. Nxd5 {[%clk 0:02:52]}  cxd5 {[%clk 0:02:09]} 19. Bxd5 {[%clk 0:02:51]}  Rab8 {[%clk 0:02:09]} 20. Qg2 {[%clk 0:02:50]}  Nb6 {[%clk 0:02:04]} 21. Be4 {[%clk 0:02:50]}  Nc4 {[%clk 0:02:00]} 22. Re1 {[%clk 0:02:39]}  Qh4 {[%clk 0:01:41]} 23. Rf1 {[%clk 0:02:21]}  Ne3 {[%clk 0:01:25]} 24. Bxe3 {[%clk 0:02:19]}  Bxe3 {[%clk 0:01:26]} 25. Qg4 {[%clk 0:02:02]}  Qxg4 {[%clk 0:01:16]} 26. hxg4 {[%clk 0:02:01]}  Rd4 {[%clk 0:01:16]} 27. Bd3 {[%clk 0:01:43]}  Rxf4 {[%clk 0:01:01]} 28. Rxf4 {[%clk 0:01:41]}  Bxf4 {[%clk 0:01:02]} 29. Re1 {[%clk 0:01:39]}  b4 {[%clk 0:01:02]} 30. axb4 {[%clk 0:01:36]}  axb4 {[%clk 0:01:03]} 31. e6 {[%clk 0:01:31]}  fxe6 {[%clk 0:00:59]} 32. Bc4 {[%clk 0:01:26]}  Bg5 {[%clk 0:00:52]} 33. Rxe6 {[%clk 0:01:24]}  Kf8 {[%clk 0:00:51]} 34. b3 {[%clk 0:01:20]}  Bf6 {[%clk 0:00:51]} 35. Kg2 {[%clk 0:01:20]}  h6 {[%clk 0:00:50]} 36. Kf3 {[%clk 0:01:18]}  Re8 {[%clk 0:00:43]} 37. Rb6 {[%clk 0:01:16]}  Bc3 {[%clk 0:00:37]} 38. Rb7 {[%clk 0:01:14]}  Re7 {[%clk 0:00:36]} 39. Rb8+ {[%clk 0:01:12]}  Re8 {[%clk 0:00:37]} 40. Rb5 {[%clk 0:01:11]}  Ke7 {[%clk 0:00:35]} 41. Kf4 {[%clk 0:01:07]}  Rf8+ {[%clk 0:00:35]} 42. Ke4 {[%clk 0:01:06]}  Kd6 {[%clk 0:00:30]} 43. Rd5+ {[%clk 0:01:00]}  Kc7 {[%clk 0:00:28]} 44. Bd3 {[%clk 0:00:55]}  Kc6 {[%clk 0:00:24]} 45. Ra5 {[%clk 0:00:52]}  Kb6 {[%clk 0:00:22]} 46. Ra6+ {[%clk 0:00:52]}  Kb7 {[%clk 0:00:23]} 47. Re6 {[%clk 0:00:51]}  Kc7 {[%clk 0:00:22]} 48. Kd5 {[%clk 0:00:50]}  Rd8+ {[%clk 0:00:22]} 49. Kc4 {[%clk 0:00:50]}  Rd6 {[%clk 0:00:19]} 50. Re7+ {[%clk 0:00:43]}  Rd7 {[%clk 0:00:19]} 51. Re8 {[%clk 0:00:41]}  Kd6 {[%clk 0:00:18]} 52. Bf5 {[%clk 0:00:41]}  Rc7+ {[%clk 0:00:18]} 53. Kd3 {[%clk 0:00:39]}  Bf6 {[%clk 0:00:16]} 54. Re6+ {[%clk 0:00:38]}  Kc5 {[%clk 0:00:15]} 55. Be4 {[%clk 0:00:36]}  Kb5 {[%clk 0:00:13]} 56. Ke2 {[%clk 0:00:33]}  Ka5 {[%clk 0:00:12]} 57. Kf3 {[%clk 0:00:31]}  Bc3 {[%clk 0:00:12]} 58. Bd3 {[%clk 0:00:31]}  Bf6 {[%clk 0:00:12]} 59. Ra6# {[%clk 0:00:30]} 1-0

[Event "January 2 Late 2024"]
[Site "https://www.chess.com"]
[Date "2024.01.02"]
[Round "9"]
[White "Balla, Tamas-Kristof"]
[Black "Antonio, Jorge Carlos"]
[Result "0-1"]
[Board "120"]
[TimeControl "180+1"]
[WhiteFideId "1208497"]
[BlackFideId "113190"]
[WhiteElo "2452"]
[BlackElo "2296"]
[WhiteTeam "ROU"]
[BlackTeam "ARG"]
[WhiteClock "0:00:02"]
[BlackClock "0:00:08"]

1. e4 {[%clk 0:02:57]}  c6 {[%clk 0:02:56]} 2. d4 {[%clk 0:02:57]}  d5 {[%clk 0:02:56]} 3. e5 {[%clk 0:02:58]}  Bf5 {[%clk 0:02:55]} 4. h4 {[%clk 0:02:57]}  e6 {[%clk 0:02:55]} 5. g4 {[%clk 0:02:57]}  Be4 {[%clk 0:02:47]} 6. f3 {[%clk 0:02:57]}  Bg6 {[%clk 0:02:47]} 7. h5 {[%clk 0:02:57]}  Ne7 {[%clk 0:02:30]} 8. hxg6 {[%clk 0:02:56]}  Nxg6 {[%clk 0:02:30]} 9. Bd3 {[%clk 0:02:57]}  c5 {[%clk 0:02:28]} 10. Bxg6 {[%clk 0:02:57]}  fxg6 {[%clk 0:02:28]} 11. c3 {[%clk 0:02:55]}  c4 {[%clk 0:02:26]} 12. Bf4 {[%clk 0:02:51]}  Be7 {[%clk 0:02:26]} 13. Ne2 {[%clk 0:02:41]}  Bh4+ {[%clk 0:02:26]} 14. Bg3 {[%clk 0:02:36]}  Bxg3+ {[%clk 0:02:26]} 15. Nxg3 {[%clk 0:02:37]}  O-O {[%clk 0:02:26]} 16. Nd2 {[%clk 0:02:35]}  Qg5 {[%clk 0:02:23]} 17. Qe2 {[%clk 0:02:32]}  Nc6 {[%clk 0:02:18]} 18. O-O-O {[%clk 0:02:31]}  b5 {[%clk 0:02:18]} 19. Kb1 {[%clk 0:02:14]}  a5 {[%clk 0:02:17]} 20. Rhf1 {[%clk 0:02:00]}  b4 {[%clk 0:02:17]} 21. cxb4 {[%clk 0:01:47]}  Nxb4 {[%clk 0:02:15]} 22. Nxc4 {[%clk 0:00:55]}  dxc4 {[%clk 0:02:12]} 23. Qxc4 {[%clk 0:00:56]}  Rfe8 {[%clk 0:02:06]} 24. Ne4 {[%clk 0:00:53]}  Qe7 {[%clk 0:01:59]} 25. Nd6 {[%clk 0:00:53]}  Nd5 {[%clk 0:01:57]} 26. f4 {[%clk 0:00:52]}  a4 {[%clk 0:01:54]} 27. f5 {[%clk 0:00:51]}  Ne3 {[%clk 0:01:47]} 28. f6 {[%clk 0:00:33]}  gxf6 {[%clk 0:01:45]} 29. exf6 {[%clk 0:00:29]}  Nxc4 {[%clk 0:01:23]} 30. Nxc4 {[%clk 0:00:24]}  Qf7 {[%clk 0:01:19]} 31. Ne5 {[%clk 0:00:24]}  Rad8 {[%clk 0:00:50]} 32. Nxf7 {[%clk 0:00:24]}  Kxf7 {[%clk 0:00:50]} 33. g5 {[%clk 0:00:24]}  Rd5 {[%clk 0:00:49]} 34. Rh1 {[%clk 0:00:23]}  Rh8 {[%clk 0:00:43]} 35. Rhg1 {[%clk 0:00:15]}  h5 {[%clk 0:00:42]} 36. Rd3 {[%clk 0:00:13]}  Rhd8 {[%clk 0:00:38]} 37. Rgd1 {[%clk 0:00:11]}  Rxg5 {[%clk 0:00:37]} 38. Ra3 {[%clk 0:00:10]}  Kxf6 {[%clk 0:00:33]} 39. Rxa4 {[%clk 0:00:10]}  h4 {[%clk 0:00:31]} 40. Ra3 {[%clk 0:00:10]}  Rh8 {[%clk 0:00:29]} 41. Rh1 {[%clk 0:00:10]}  Rd5 {[%clk 0:00:27]} 42. Rd3 {[%clk 0:00:09]}  g5 {[%clk 0:00:27]} 43. a4 {[%clk 0:00:09]}  g4 {[%clk 0:00:26]} 44. b4 {[%clk 0:00:08]}  h3 {[%clk 0:00:25]} 45. b5 {[%clk 0:00:07]}  Kg5 {[%clk 0:00:25]} 46. b6 {[%clk 0:00:06]}  Ra8 {[%clk 0:00:24]} 47. b7 {[%clk 0:00:03]}  Rb8 {[%clk 0:00:24]} 48. Rb3 {[%clk 0:00:03]}  Rxd4 {[%clk 0:00:24]} 49. Rc1 {[%clk 0:00:03]}  h2 {[%clk 0:00:22]} 50. Rb2 {[%clk 0:00:02]}  g3 {[%clk 0:00:21]} 51. Rb3 {[%clk 0:00:02]}  Rd7 {[%clk 0:00:20]} 52. Rxg3+ {[%clk 0:00:02]}  Kf6 {[%clk 0:00:20]} 53. Rg2 {[%clk 0:00:02]}  Rdxb7+ {[%clk 0:00:20]} 54. Ka2 {[%clk 0:00:03]}  Rh8 {[%clk 0:00:17]} 55. Rf1+ {[%clk 0:00:03]}  Ke7 {[%clk 0:00:17]} 56. Rh1 {[%clk 0:00:04]}  Ra7 {[%clk 0:00:16]} 57. Ka3 {[%clk 0:00:03]}  Rh3+ {[%clk 0:00:15]} 58. Kb4 {[%clk 0:00:04]}  Rh4+ {[%clk 0:00:14]} 59. Kb3 {[%clk 0:00:05]}  Raxa4 {[%clk 0:00:14]} 60. Rgxh2 {[%clk 0:00:05]}  Rxh2 {[%clk 0:00:14]} 61. Rxh2 {[%clk 0:00:06]}  Rg4 {[%clk 0:00:14]} 62. Kc3 {[%clk 0:00:07]}  e5 {[%clk 0:00:14]} 63. Kd3 {[%clk 0:00:07]}  Ke6 {[%clk 0:00:14]} 64. Ke3 {[%clk 0:00:07]}  Kd5 {[%clk 0:00:14]} 65. Rh8 {[%clk 0:00:07]}  Rg3+ {[%clk 0:00:14]} 66. Ke2 {[%clk 0:00:08]}  Ra3 {[%clk 0:00:14]} 67. Kd2 {[%clk 0:00:08]}  Ke4 {[%clk 0:00:14]} 68. Rh4+ {[%clk 0:00:08]}  Kd5 {[%clk 0:00:14]} 69. Rh8 {[%clk 0:00:08]}  Kd4 {[%clk 0:00:11]} 70. Ke2 {[%clk 0:00:06]}  Ra2+ {[%clk 0:00:10]} 71. Ke1 {[%clk 0:00:03]}  Ke3 {[%clk 0:00:11]} 72. Rh3+ {[%clk 0:00:03]}  Kd4 {[%clk 0:00:10]} 73. Rh4+ {[%clk 0:00:04]}  e4 {[%clk 0:00:11]} 74. Rh8 {[%clk 0:00:05]}  Kd3 {[%clk 0:00:10]} 75. Rd8+ {[%clk 0:00:04]}  Ke3 {[%clk 0:00:10]} 76. Rd1 {[%clk 0:00:03]}  Rh2 {[%clk 0:00:09]} 77. Kf1 {[%clk 0:00:01]}  Rh1+ {[%clk 0:00:08]} 78. Kg2 {[%clk 0:00:02]} 0-1